lending/lending_fUSD_20250808
["ID","MTS","AMOUNT","RATE_DAILY","PERIOD"]
[377915413,1754613126581,-1063.27,0.00021369,2]
[377915414,1754613126591,-1515.17,0.00021369,2]
[377915415,1754613126600,-1621.03,0.00021369,2]
[377915416,1754613126611,-400.0,0.00021369,2]
[377915417,1754613126621,-400.0,0.00021369,2]
[377915418,1754613126632,-577.01,0.00021369,2]
[377915419,1754613126642,-400.0,0.00021369,2]
[377915420,1754613126651,-877.01,0.00021369,2]
[377915421,1754613126661,-400.0,0.00021369,2]
[377915422,1754613126671,-400.0,0.00021369,2]
[377915423,1754613126680,-1622.23,0.00021369,2]
[377915424,1754613126689,-400.0,0.00021369,2]
[377915425,1754613126698,-1480.91,0.00021369,2]
[377915426,1754613126708,-400.0,0.00021369,2]
[377915427,1754613126718,-400.0,0.00021369,2]
[377915428,1754613126728,-981.54,0.00021369,2]
[377915429,1754613126737,-400.0,0.00021369,2]
[377915430,1754613126747,-1040.41,0.00021369,2]
[377915431,1754613126757,-400.0,0.00021369,2]
[377915432,1754613126766,-447.12,0.00021369,2]
[377915433,1754613126775,-400.0,0.00021369,2]
[377915434,1754613126785,-246.791616,0.00021369,2]
[377915435,1754613126795,-246.791616,0.00021369,2]
[377915436,1754613126806,-1390.26,0.00021369,2]
[377915437,1754613126815,-1312.79,0.00021369,2]
[377915438,1754613126825,-446.5,0.00021369,2]
[377915439,1754613126835,-1460.09,0.00021369,2]
[377915440,1754613126847,-806.42,0.00021369,2]
[377915441,1754613126859,-783.24,0.00021369,2]
[377915442,1754613126869,-998.91,0.00021369,2]
[377915443,1754613126879,-680.12,0.00021369,2]
[377915444,1754613126889,-400.0,0.00021369,2]
[377915445,1754613126898,-400.0,0.00021369,2]
[377915446,1754613126907,-436.39,0.00021369,2]
[377915447,1754613126917,-633.1,0.00021369,2]
[377915448,1754613126926,-408.97,0.00021369,2]
[377915449,1754613126938,-803.71,0.00021369,2]
[377915450,1754613126949,-400.0,0.00021369,2]
[377915451,1754613126960,-1211.14,0.00021369,2]
[377915452,1754613126970,-832.28,0.00021369,2]
[377915453,1754613126981,-400.0,0.00021369,2]
[377915454,1754613126991,-400.0,0.00021369,2]
[377915455,1754613127000,-400.0,0.00021369,2]
[377915456,1754613127011,-400.0,0.00021369,2]
[377915457,1754613127021,-400.0,0.00021369,2]
[377915458,1754613127031,-634.61,0.00021369,2]
[377915459,1754613127041,-400.0,0.00021369,2]
[377915460,1754613127051,-1042.43,0.00021369,2]
[377915461,1754613127061,-411.96,0.00021369,2]
[377915462,1754613127070,-707.32,0.00021369,2]
[377915463,1754613127080,-455.66,0.00021369,2]
[377915464,1754613127090,-400.0,0.00021369,2]
[377915465,1754613127099,-854.23,0.00021369,2]
[377915466,1754613127109,-9366.87,0.00021369,2]
[377915467,1754613127119,-1513.02,0.00021369,2]
[377915468,1754613127130,-484.41,0.00021369,2]
[377915469,1754613127139,-801.68,0.00021369,2]
[377915470,1754613127149,-447.08,0.00021369,2]
[377915471,1754613127158,-1103.08,0.00021369,2]
[377915472,1754613127168,-400.0,0.00021369,2]
[377915473,1754613127177,-400.0,0.00021369,2]
[377915474,1754613127186,-1785.26,0.00021369,2]
[377915475,1754613127196,-400.0,0.00021369,2]
[377915476,1754613127205,-1209.1,0.00021369,2]
[377915477,1754613127214,-400.0,0.00021369,2]
[377915478,1754613127223,-512.05,0.00021369,2]
[377915479,1754613127232,-205.80408884,0.00021369,2]
[377915480,1754613127242,-1338.39,0.00021369,2]
[377915481,1754613127251,-837.98,0.00021369,2]
[377915482,1754613127261,-400.0,0.00021369,2]
[377915483,1754613127270,-467.43,0.00021369,2]
[377915484,1754613127284,-400.0,0.00021369,2]
[377915485,1754613127294,-588.83,0.00021369,2]
[377915486,1754613127304,-1005.96,0.00021369,2]
[377915487,1754613127314,-602.9,0.00021369,2]
[377915488,1754613127324,-1973.33,0.00021369,2]
[377915489,1754613127334,-969.26,0.00021369,2]
[377915490,1754613127343,-703.47,0.00021369,2]
[377915491,1754613127353,-1304.83,0.00021369,2]
[377915492,1754613127363,-2027.86,0.00021369,2]
[377915493,1754613127372,-1312.78,0.00021369,2]
[377915494,1754613127383,-688.65,0.00021369,2]
[377915495,1754613127393,-400.0,0.00021369,2]
[377915496,1754613127403,-400.0,0.00021369,2]
[377915497,1754613127413,-2100.2,0.00021369,2]
[377915498,1754613127423,-1134.28,0.00021369,2]
[377915499,1754613127432,-1569.86,0.00021369,2]
[377915500,1754613127442,-1383.67,0.00021369,2]
[377915501,1754613127453,-529.24,0.00021369,2]
[377915502,1754613127463,-400.0,0.00021369,2]
[377915503,1754613127475,-812.54,0.00021369,2]
[377915504,1754613127485,-871.51,0.00021369,2]
[377915505,1754613127494,-755.43,0.00021369,2]
[377915506,1754613127504,-801.5,0.00021369,2]
[377915507,1754613127514,-603.98,0.00021369,2]
[377915508,1754613127524,-400.0,0.00021369,2]
[377915509,1754613127533,-1094.56,0.00021369,2]
[377915510,1754613127543,-173.12532891,0.00021369,2]
[377915511,1754613127555,-1864.15,0.00021369,2]
[377915512,1754613127567,-744.46,0.00021369,2]
[377915513,1754613127577,-574.05,0.00021369,2]
[377915514,1754613127588,-1856.19,0.00021369,2]
[377915515,1754613127598,-400.0,0.00021369,2]
[377915516,1754613127610,-2819.61,0.00021369,2]
[377915517,1754613127620,-963.74,0.00021369,2]
[377915518,1754613127632,-400.0,0.00021369,2]
[377915519,1754613127642,-400.0,0.00021369,2]
[377915520,1754613127652,-641.78,0.00021369,2]
[377915521,1754613127661,-400.0,0.00021369,2]
[377915522,1754613127671,-421.69,0.00021369,2]
[377915523,1754613127682,-1130.98,0.00021369,2]
[377915524,1754613127693,-711.52,0.00021369,2]
[377915525,1754613127703,-1482.22,0.00021369,2]
[377915526,1754613127713,-400.0,0.00021369,2]
[377915527,1754613127723,-1692.64,0.00021369,2]
[377915528,1754613127733,-400.0,0.00021369,2]
[377915529,1754613127744,-9960.13,0.00021369,2]
[377915530,1754613127754,-400.0,0.00021369,2]
[377915531,1754613127764,-561.73,0.00021369,2]
[377915532,1754613127774,-400.0,0.00021369,2]
[377915533,1754613127785,-500.34,0.00021369,2]
[377915534,1754613127795,-1592.3,0.00021369,2]
[377915535,1754613127805,-546.64,0.00021369,2]
[377915536,1754613127815,-606.66,0.00021369,2]
[377915537,1754613127825,-1471.57,0.00021369,2]
[377915538,1754613127835,-400.0,0.00021369,2]
[377915539,1754613127845,-2507.14,0.00021369,2]
[377915540,1754613127855,-400.0,0.00021369,2]
[377915541,1754613127871,-1316.78,0.00021369,2]
[377915542,1754613127885,-567.89,0.00021369,2]
[377915543,1754613127896,-1758.45,0.00021369,2]
[377915544,1754613127907,-400.0,0.00021369,2]
[377915545,1754613127917,-400.0,0.00021369,2]
[377915546,1754613127927,-1555.78,0.00021369,2]
[377915547,1754613127937,-1144.53,0.00021369,2]
[377915548,1754613127948,-1450.07,0.00021369,2]
[377915549,1754613127958,-416.35,0.00021369,2]
[377915550,1754613127968,-2230.25,0.00021369,2]
[377915551,1754613127978,-973.9,0.00021369,2]
[377915552,1754613127988,-400.0,0.00021369,2]
[377915553,1754613127998,-1577.14,0.00021369,2]
[377915554,1754613128010,-1658.19,0.00021369,2]
[377915555,1754613128021,-1949.39,0.00021369,2]
[377915556,1754613128032,-2189.36,0.00021369,2]
[377915557,1754613128041,-544.97,0.00021369,2]
[377915558,1754613128051,-400.0,0.00021369,2]
[377915559,1754613128061,-1736.77,0.00021369,2]
[377915560,1754613128071,-400.0,0.00021369,2]
[377915561,1754613128081,-723.41,0.00021369,2]
[377915562,1754613128091,-1506.04,0.00021369,2]
[377915563,1754613128101,-1668.74,0.00021369,2]
[377915564,1754613128111,-276.33291046,0.00021369,2]
[377915565,1754613128120,-527.26,0.00021369,2]
[377915566,1754613128132,-1222.43,0.00021369,2]
[377915567,1754613128143,-2004.13,0.00021369,2]
[377915568,1754613128153,-1196.36,0.00021369,2]
[377915569,1754613128163,-444.47,0.00021369,2]
[377915570,1754613128173,-554.57,0.00021369,2]
[377915571,1754613128183,-1393.06,0.00021369,2]
[377915572,1754613128193,-2031.25,0.00021369,2]
[377915573,1754613128203,-1109.06,0.00021369,2]
[377915574,1754613128214,-624.86,0.00021369,2]
[377915575,1754613128224,-1290.07,0.00021369,2]
[377915576,1754613128234,-469.16,0.00021369,2]
[377915577,1754613128244,-2592.74,0.00021369,2]
[377915578,1754613128255,-2666.29,0.00021369,2]
[377915579,1754613128265,-1460.91,0.00021369,2]
[377915580,1754613128275,-2043.58,0.00021369,2]
[377915581,1754613128285,-1164.41,0.00021369,2]
[377915582,1754613128296,-1333.93,0.00021369,2]
[377915583,1754613128306,-694.8,0.00021369,2]
[377915584,1754613128316,-467.66756424,0.00021369,2]
[377915585,1754613128326,-750.53,0.00021369,2]
[377915586,1754613128336,-631.92,0.00021369,2]
[377915587,1754613128347,-518.35,0.00021369,2]
[377915588,1754613128357,-1164.69,0.00021369,2]
[377915589,1754613128367,-2811.47,0.00021369,2]
[377915590,1754613128379,-465.25,0.00021369,2]
[377915591,1754613128390,-543.99,0.00021369,2]
[377915592,1754613128400,-680.98,0.00021369,2]
[377915593,1754613128410,-1133.55,0.00021369,2]
[377915594,1754613128431,-4407.12,0.00021369,2]
[377915595,1754613128441,-1818.01,0.00021369,2]
[377915596,1754613128451,-1288.12,0.00021369,2]
[377915597,1754613128464,-1275.65,0.00021369,2]
[377915598,1754613128475,-1714.38,0.00021369,2]
[377915599,1754613128485,-961.95,0.00021369,2]
[377915600,1754613128495,-1117.23,0.00021369,2]
[377915601,1754613128505,-453.21,0.00021369,2]
[377915602,1754613128534,-400.0,0.00021369,2]
[377915603,1754613128544,-1383.67,0.00021369,2]
[377915604,1754613128554,-400.0,0.00021369,2]
[377915605,1754613128564,-879.97,0.00021369,2]
[377915606,1754613128574,-633.58,0.00021369,2]
[377915607,1754613128584,-1989.79,0.00021369,2]
[377915608,1754613128594,-1604.94,0.00021369,2]
[377915609,1754613128604,-400.0,0.00021369,2]
[377915610,1754613128615,-1105.6,0.00021369,2]
[377915611,1754613128625,-426.59,0.00021369,2]
[377915612,1754613128638,-446.1,0.00021369,2]
[377915613,1754613128648,-1061.62,0.00021369,2]
[377915614,1754613128658,-400.0,0.00021369,2]
[377915615,1754613128668,-2286.48,0.00021369,2]
[377915616,1754613128678,-1419.58,0.00021369,2]
[377915617,1754613128688,-608.07,0.00021369,2]
[377915618,1754613128698,-1349.34,0.00021369,2]
[377915619,1754613128708,-1214.9,0.00021369,2]
[377915620,1754613128718,-994.63,0.00021369,2]
[377915621,1754613128728,-400.0,0.00021369,2]
[377915622,1754613128738,-2503.56,0.00021369,2]
[377915623,1754613128748,-668.68,0.00021369,2]
[377915624,1754613128758,-280.0,0.00021369,2]
[377915625,1754613128768,-2034.76,0.00021369,2]
[377915626,1754613128778,-578.7,0.00021369,2]
[377915627,1754613128789,-1276.94,0.00021369,2]
[377915628,1754613128799,-1528.92,0.00021369,2]
[377915629,1754613128810,-400.0,0.00021369,2]
[377915630,1754613128820,-1646.26,0.00021369,2]
[377915631,1754613128830,-400.0,0.00021369,2]
[377915632,1754613128841,-1889.62,0.00021369,2]
[377915633,1754613128851,-1501.0,0.00021369,2]
[377915634,1754613128863,-1025.64,0.00021369,2]
[377915635,1754613128874,-2128.65,0.00021369,2]
[377915636,1754613128886,-1492.79,0.00021369,2]
[377915637,1754613128898,-547.41,0.00021369,2]
[377915638,1754613128908,-1086.24,0.00021369,2]
[377915639,1754613128918,-400.0,0.00021369,2]
[377915640,1754613128928,-400.0,0.00021369,2]
[377915641,1754613128941,-607.0,0.00021369,2]
[377915642,1754613128952,-1345.75,0.00021369,2]
[377915643,1754613128963,-420.32,0.00021369,2]
[377915644,1754613128974,-1120.37,0.00021369,2]
[377915645,1754613128984,-489.48,0.00021369,2]
[377915646,1754613128994,-1434.86,0.00021369,2]
[377915647,1754613129005,-1951.53,0.00021369,2]
[377915648,1754613129015,-400.0,0.00021369,2]
[377915649,1754613129026,-2325.69,0.00021369,2]
[377915650,1754613129036,-917.26,0.00021369,2]
[377915651,1754613129046,-1376.02,0.00021369,2]
[377915652,1754613129058,-1065.9,0.00021369,2]
[377915653,1754613129068,-1350.78,0.00021369,2]
[377915654,1754613129079,-1151.09,0.00021369,2]
[377915655,1754613129090,-451.49,0.00021369,2]
[377915656,1754613129102,-400.0,0.00021369,2]
[377915657,1754613129113,-400.0,0.00021369,2]
[377915658,1754613129124,-1657.63,0.00021369,2]
[377915659,1754613129135,-1848.96,0.00021369,2]
[377915660,1754613129146,-1409.09,0.00021369,2]
[377915661,1754613129156,-400.0,0.00021369,2]
[377915662,1754613129167,-400.0,0.00021369,2]
[377915663,1754613129178,-1826.78,0.00021369,2]
[377915664,1754613129188,-400.0,0.00021369,2]
[377915665,1754613129199,-1400.02,0.00021369,2]
[377915666,1754613129210,-2074.91,0.00021369,2]
[377915667,1754613129222,-608.66,0.00021369,2]
[377915668,1754613129233,-400.0,0.00021369,2]
[377915669,1754613129243,-2222.15,0.00021369,2]
[377915670,1754613129254,-1588.59,0.00021369,2]
[377915671,1754613129265,-1481.84,0.00021369,2]
[377915672,1754613129275,-400.0,0.00021369,2]
[377915673,1754613129286,-1119.1,0.00021369,2]
[377915674,1754613129297,-880.06,0.00021369,2]
[377915675,1754613129307,-1688.74,0.00021369,2]
[377915676,1754613129317,-1345.58,0.00021369,2]
[377915677,1754613129328,-1888.11,0.00021369,2]
[377915678,1754613129337,-2547.87,0.00021369,2]
[377915679,1754613129348,-400.0,0.00021369,2]
[377915680,1754613129358,-1803.23,0.00021369,2]
[377915681,1754613129369,-3068.61,0.00021369,2]
[377915682,1754613129380,-3553.23,0.00021369,2]
[377915683,1754613129391,-846.92,0.00021369,2]
[377915684,1754613129402,-400.0,0.00021369,2]
[377915685,1754613129413,-1278.15,0.00021369,2]
[377915686,1754613129423,-1857.98,0.00021369,2]
[377915687,1754613129433,-2016.9,0.00021369,2]
[377915688,1754613129443,-2027.95,0.00021369,2]
[377915689,1754613129454,-1218.73,0.00021369,2]
[377915690,1754613129464,-2106.04,0.00021369,2]
[377915691,1754613129474,-1934.76,0.00021369,2]
[377915692,1754613129484,-633.24,0.00021369,2]
[377915693,1754613129494,-881.02,0.00021369,2]
[377915694,1754613129504,-1410.86,0.00021369,2]
[377915695,1754613129514,-400.0,0.00021369,2]
[377915696,1754613129534,-1461.11,0.00021369,2]
[377915697,1754613129550,-2341.65,0.00021369,2]
[377915698,1754613129560,-400.0,0.00021369,2]
[377915699,1754613129571,-1720.55,0.00021369,2]
[377915700,1754613129581,-1452.03,0.00021369,2]
[377915701,1754613129592,-1620.97,0.00021369,2]
[377915702,1754613129866,-496.68,0.00021369,2]
[377915703,1754613129878,-1617.17,0.00021369,2]
[377915704,1754613129888,-2144.18,0.00021369,2]
[377915705,1754613129899,-400.0,0.00021369,2]
[377915706,1754613129911,-2107.78,0.00021369,2]
[377915707,1754613129921,-634.15,0.00021369,2]
[377915708,1754613129930,-749.36,0.00021369,2]
[377915709,1754613129942,-558.88,0.00021369,2]
[377915710,1754613129954,-400.0,0.00021369,2]
[377915711,1754613129965,-2615.62,0.00021369,2]
[377915712,1754613129975,-1657.01,0.00021369,2]
[377915713,1754613129985,-1646.42,0.00021369,2]
[377915714,1754613129995,-400.0,0.00021369,2]
[377915715,1754613130006,-1193.46,0.00021369,2]
[377915716,1754613130016,-2388.63,0.00021369,2]
[377915717,1754613130025,-1288.88,0.00021369,2]
[377915718,1754613130036,-2311.16,0.00021369,2]
[377915719,1754613130047,-2350.74,0.00021369,2]
[377915720,1754613130057,-2136.59,0.00021369,2]
[377915721,1754613130066,-1822.62,0.00021369,2]
[377915722,1754613130076,-400.0,0.00021369,2]
[377915723,1754613130086,-612.27,0.00021369,2]
[377915724,1754613130095,-1810.11,0.00021369,2]
[377915725,1754613130105,-1537.46,0.00021369,2]
[377915726,1754613130116,-1369.16,0.00021369,2]
[377915727,1754613130127,-511.54,0.00021369,2]
[377915728,1754613130138,-482.95,0.00021369,2]
[377915729,1754613130149,-1248.2,0.00021369,2]
[377915730,1754613130159,-400.0,0.00021369,2]
[377915731,1754613130170,-1594.51,0.00021369,2]
[377915732,1754613130180,-1678.28,0.00021369,2]
[377915733,1754613130191,-5670.63,0.00021369,2]
[377915734,1754613130201,-845.84,0.00021369,2]
[377915735,1754613130212,-483.64,0.00021369,2]
[377915736,1754613130222,-1205.01,0.00021369,2]
[377915737,1754613130231,-893.25,0.00021369,2]
[377915738,1754613130241,-663.05,0.00021369,2]
[377915739,1754613130252,-1256.8,0.00021369,2]
[377915740,1754613130263,-2578.27,0.00021369,2]
[377915741,1754613130273,-1440.32,0.00021369,2]
[377915742,1754613130283,-1244.17,0.00021369,2]
[377915743,1754613130293,-2047.45,0.00021369,2]
[377915744,1754613130303,-738.95,0.00021369,2]
[377915745,1754613130312,-575.03,0.00021369,2]
[377915746,1754613130321,-2097.6,0.00021369,2]
[377915747,1754613130331,-500.07,0.00021369,2]
[377915748,1754613130340,-422.96,0.00021369,2]
[377915749,1754613130350,-400.0,0.00021369,2]
[377915750,1754613130359,-759.15,0.00021369,2]
[377915751,1754613130368,-1321.01,0.00021369,2]
[377915752,1754613130378,-400.0,0.00021369,2]
[377915753,1754613130388,-1757.73,0.00021369,2]
[377915754,1754613130397,-418.9481868,0.00021369,2]
[377915755,1754613130407,-1316.97,0.00021369,2]
[377915756,1754613130417,-1208.59,0.00021369,2]
[377915757,1754613130426,-454.26,0.00021369,2]
[377915758,1754613130438,-3377.08,0.00021369,2]
[377915759,1754613130449,-1895.55,0.00021369,2]
[377915760,1754613130461,-671.01,0.00021369,2]
[377915761,1754613130470,-1206.78,0.00021369,2]
[377915762,1754613130482,-1065.6,0.00021369,2]
[377915763,1754613130491,-2465.13,0.00021369,2]
[377915764,1754613130501,-400.0,0.00021369,2]
[377915765,1754613130511,-930.4,0.00021369,2]
[377915766,1754613130521,-2359.49,0.00021369,2]
[377915767,1754613130531,-1712.73,0.00021369,2]
[377915768,1754613130541,-916.62,0.00021369,2]
[377915769,1754613130552,-1926.69,0.00021369,2]
[377915770,1754613130562,-831.18,0.00021369,2]
[377915771,1754613130572,-458.34,0.00021369,2]
[377915772,1754613130582,-1982.51,0.00021369,2]
[377915773,1754613130592,-1225.08,0.00021369,2]
[377915774,1754613130601,-2026.14,0.00021369,2]
[377915775,1754613130612,-785.6,0.00021369,2]
[377915776,1754613130622,-1259.99,0.00021369,2]
[377915777,1754613130635,-1138.89,0.00021369,2]
[377915778,1754613130645,-821.3,0.00021369,2]
[377915779,1754613130655,-1835.44,0.00021369,2]
[377915780,1754613130666,-1205.32,0.00021369,2]
[377915781,1754613130677,-517.59,0.00021369,2]
[377915782,1754613130687,-1444.0,0.00021369,2]
[377915783,1754613130697,-2627.0,0.00021369,2]
[377915784,1754613130706,-1785.88,0.00021369,2]
[377915785,1754613130717,-720.69,0.00021369,2]
[377915786,1754613130728,-400.0,0.00021369,2]
[377915787,1754613130738,-782.04,0.00021369,2]
[377915788,1754613130748,-400.0,0.00021369,2]
[377915789,1754613130759,-1057.29,0.00021369,2]
[377915790,1754613130769,-594.32,0.00021369,2]
[377915791,1754613130780,-737.52,0.00021369,2]
[377915792,1754613130790,-760.17,0.00021369,2]
[377915793,1754613130799,-1256.19,0.00021369,2]
[377915794,1754613130809,-2043.3,0.00021369,2]
[377915795,1754613130819,-1213.52,0.00021369,2]
[377915796,1754613130829,-1326.52,0.00021369,2]
[377915797,1754613130839,-400.0,0.00021369,2]
[377915798,1754613130849,-400.0,0.00021369,2]
[377915799,1754613130861,-718.93,0.00021369,2]
[377915800,1754613130871,-1429.55,0.00021369,2]
[377915801,1754613130883,-400.0,0.00021369,2]
[377915802,1754613130892,-2287.32,0.00021369,2]
[377915803,1754613130902,-1573.48,0.00021369,2]
[377915804,1754613130912,-1328.2,0.00021369,2]
[377915805,1754613130922,-1087.69,0.00021369,2]
[377915806,1754613130933,-400.0,0.00021369,2]
[377915807,1754613130944,-1998.91,0.00021369,2]
[377915808,1754613130954,-400.0,0.00021369,2]
[377915809,1754613130964,-2952.54,0.00021369,2]
[377915810,1754613130973,-1291.71,0.00021369,2]
[377915811,1754613130983,-507.81,0.00021369,2]
[377915812,1754613130994,-1129.91,0.00021369,2]
[377915813,1754613131003,-2109.97,0.00021369,2]
[377915814,1754613131013,-1425.93,0.00021369,2]
[377915815,1754613131023,-921.79,0.00021369,2]
[377915816,1754613131033,-780.96,0.00021369,2]
[377915817,1754613131043,-662.71,0.00021369,2]
[377915818,1754613131053,-1165.14,0.00021369,2]
[377915819,1754613131062,-1164.62,0.00021369,2]
[377915820,1754613131072,-2405.69,0.00021369,2]
[377915821,1754613131082,-620.84,0.00021369,2]
[377915822,1754613131092,-918.26,0.00021369,2]
[377915823,1754613131102,-1258.15,0.00021369,2]
[377915824,1754613131111,-2947.95,0.00021369,2]
[377915825,1754613131121,-876.19,0.00021369,2]
[377915826,1754613131133,-1553.23,0.00021369,2]
[377915827,1754613131142,-478.79,0.00021369,2]
[377915828,1754613131153,-1217.16,0.00021369,2]
[377915829,1754613131162,-599.75,0.00021369,2]
[377915830,1754613131172,-2199.42,0.00021369,2]
[377915831,1754613131182,-21934.36,0.00021369,2]
[377915832,1754613131192,-2212.98,0.00021369,2]
[377915833,1754613131201,-1718.94,0.00021369,2]
[377915834,1754613131210,-2805.22,0.00021369,2]
[377915835,1754613131220,-1128.21,0.00021369,2]
[377915836,1754613131230,-400.0,0.00021369,2]
[377915837,1754613131239,-454.14,0.00021369,2]
[377915838,1754613131248,-400.0,0.00021369,2]
[377915839,1754613131258,-913.11,0.00021369,2]
[377915840,1754613131267,-2525.21,0.00021369,2]
[377915841,1754613131277,-484.16,0.00021369,2]
[377915842,1754613131286,-1717.22,0.00021369,2]
[377915843,1754613131296,-674.02,0.00021369,2]
[377915844,1754613131306,-400.0,0.00021369,2]
[377915845,1754613131315,-3589.91,0.00021369,2]
[377915846,1754613131325,-445.14,0.00021369,2]
[377915847,1754613131334,-1638.11,0.00021369,2]
[377915848,1754613131344,-1662.56,0.00021369,2]
[377915849,1754613131354,-1890.31,0.00021369,2]
[377915850,1754613131364,-820.59,0.00021369,2]
[377915851,1754613131374,-400.0,0.00021369,2]
[377915852,1754613131386,-1814.44,0.00021369,2]
[377915853,1754613131396,-674.63,0.00021369,2]
[377915854,1754613131405,-2569.88,0.00021369,2]
[377915855,1754613131415,-600.51,0.00021369,2]
[377915856,1754613131424,-400.0,0.00021369,2]
[377915857,1754613131434,-2338.84,0.00021369,2]
[377915858,1754613131443,-1179.5,0.00021369,2]
[377915859,1754613131453,-400.0,0.00021369,2]
[377915860,1754613131463,-400.0,0.00021369,2]
[377915861,1754613131473,-2335.94,0.00021369,2]
[377915862,1754613131483,-5688.95,0.00021369,2]
[377915863,1754613131493,-1234.92,0.00021369,2]
[377915864,1754613131502,-400.0,0.00021369,2]
[377915865,1754613131513,-862.72,0.00021369,2]
[377915866,1754613131524,-1880.9,0.00021369,2]
[377915867,1754613131533,-1651.16,0.00021369,2]
[377915868,1754613131542,-400.0,0.00021369,2]
[377915869,1754613131552,-707.51,0.00021369,2]
[377915870,1754613131562,-480.51,0.00021369,2]
[377915871,1754613131571,-1525.3,0.00021369,2]
[377915872,1754613131581,-492.44,0.00021369,2]
[377915873,1754613131591,-250.0,0.00021421,2]
[377915874,1754613131602,-511.0,0.00021451,7]
[377915875,1754613131613,-267.11,0.00021452,2]
[377915876,1754613131624,-152.0,0.00021458,9]
[377915877,1754613131636,-25160.67,0.00021485,11]
[377915878,1754613131646,-1087.7,0.00021485,11]
[377915879,1754613131656,-26171.04,0.00021485,11]
[377915880,1754613131665,-11942.0,0.00021485,11]
[377915881,1754613131675,-4811.11,0.00021485,11]
[377915882,1754613131685,-226.2770895,0.00021497,2]
[377915883,1754613131694,-217.18463152,0.000215,2]
[377915884,1754613131705,-186.92,0.00021513,2]
[377915885,1754613131715,-298.50938007,0.00021544,2]
[377915886,1754613131725,-150.0,0.0002155,2]
[377915887,1754613131735,-595.13,0.00021577,2]
[377915888,1754613131745,-5000.0,0.00021588,2]
[377915889,1754613131754,-2514.41,0.00021597,2]
[377915890,1754613131765,-2514.43,0.00021624,2]
[377915891,1754613131774,-2521.16,0.00021624,2]
[377915892,1754613131784,-400.0,0.00021625,2]
[377915893,1754613131794,-1770.72,0.0002163,2]
[377915894,1754613131804,-2033.74,0.0002163,2]
[377915895,1754613131814,-400.0,0.0002163,2]
[377915896,1754613131824,-1928.95,0.0002163,2]
[377915897,1754613131834,-1964.46,0.0002163,2]
[377915898,1754613131844,-1517.59,0.0002163,2]
[377915899,1754613131856,-2517.35,0.0002163,2]
[377915900,1754613131866,-3417.84,0.0002163,2]
[377915901,1754613131876,-751.84,0.00021637,2]
[377915902,1754613131887,-400.0,0.00021643,2]
[377915903,1754613131898,-400.0,0.00021643,2]
[377915904,1754613131907,-413.9,0.00021643,2]
[377915905,1754613131917,-491.72,0.00021643,2]
[377915906,1754613131927,-400.0,0.00021643,2]
[377915907,1754613131938,-1398.87,0.00021643,2]
[377915908,1754613131947,-1031.25,0.00021643,2]
[377915909,1754613131957,-400.0,0.00021643,2]
[377915910,1754613131966,-454.27530778,0.00021643,2]
[377915911,1754613131976,-400.0,0.00021643,2]
[377915912,1754613131986,-565.33,0.00021643,2]